{"text_format":"1","workbook":"xlsx","n_sheets":3,"sheets":["Manual","Formato","Hoja2"],"not_rendered":{"charts":0,"images":5,"macros":1,"external_links":0,"defined_names":18,"comments":1,"pivot_tables":0},"unopened":[],"bounds":{"document_bytes":16777216,"sheet_cells":100000,"rows_first":2000,"rows_last":500,"rows_between":2000,"halvings":0,"cell_chars":16384,"cell_head_chars":4096},"cells_cut":0,"cells_raw":0,"read":"whole","date_system":"1900"}

{"sheet":"Manual","index":0,"n_rows":31,"n_cols":4,"rows_kept":31,"cut":false,"hidden":false,"merged":[[0,0,1,11],[26,0,27,11],[30,0,30,2],[30,3,30,10]]}
["Manual de instrucciones para el uso del formato de solicitudes vehiculares"]
[]
[]
[]
[]
[]
[]
[]
[]
[]
[]
[]
[]
[]
[]
[]
[]
[]
[]
[]
[]
[]
[]
[]
[]
[]
["Glosario"]
[]
["1. Operación Autogestionable:",null,null,"Son aquellas operaciones que el corredor puede realizar a través de la plataforma SAS NB&R"]
[]
["2. Operación Autogestionable\n      con validación:",null,null,"Son aquellas operaciones que  el corredor puede realizar a través de la plataforma SAS NB&R  con un flujo de validación o aprobación interna (Vb°) "]

{"sheet":"Formato","index":1,"n_rows":125,"n_cols":16,"rows_kept":125,"cut":false,"hidden":false,"merged":[[120,1,120,2],[120,3,120,4],[121,1,121,2],[121,3,121,4],[122,1,122,2],[122,3,122,4],[123,1,123,2],[123,3,123,4],[124,1,124,2],[124,3,124,4],[114,1,114,4],[115,1,115,4],[116,1,116,2],[116,3,116,4],[117,1,117,2],[117,3,117,4],[118,1,118,2],[118,3,118,4],[119,1,119,2],[119,3,119,4],[98,1,102,4],[105,1,109,4],[111,0,111,5],[7,1,9,5],[11,0,11,5],[12,1,12,4],[13,1,13,2],[14,1,14,2],[15,1,15,2],[19,1,19,2],[29,0,39,0],[29,1,29,4],[29,5,39,5],[30,1,30,4],[31,1,31,2],[31,3,31,4],[32,1,32,2],[32,3,32,4],[33,1,33,2],[33,3,33,4],[37,1,37,2],[37,3,37,4],[38,1,38,2],[38,3,38,4],[0,0,4,5],[5,1,6,5],[5,0,6,0],[10,0,10,5],[7,0,9,0],[24,1,24,2],[24,3,24,4],[27,0,27,5],[28,0,28,5],[20,1,21,2],[22,1,23,2],[14,3,14,4],[19,3,19,4],[21,3,21,4],[17,1,17,2],[18,1,18,2],[16,3,16,4],[17,3,17,4],[18,3,18,4],[25,1,25,2],[26,1,26,2],[45,1,45,2],[45,3,45,4],[52,1,52,2],[52,3,52,4],[39,1,39,2],[39,3,39,4],[34,1,34,2],[34,3,34,4],[35,1,35,2],[35,3,35,4],[36,1,36,2],[36,3,36,4],[46,1,46,2],[46,3,46,4],[54,0,55,0],[54,1,54,2],[54,3,54,4],[54,5,55,5],[55,1,55,2],[55,3,55,4],[49,1,49,2],[49,3,49,4],[50,1,50,2],[50,3,50,4],[51,1,51,2],[51,3,51,4],[41,5,52,5],[47,1,47,2],[47,3,47,4],[48,1,48,2],[48,3,48,4],[41,0,52,0],[41,1,41,2],[41,3,41,4],[42,1,42,4],[43,1,43,4],[44,1,44,2],[44,3,44,4],[56,0,56,5],[57,0,66,0],[57,1,57,4],[57,5,66,5],[58,1,58,2],[58,3,58,4],[59,1,59,2],[59,3,59,4],[60,1,60,2],[60,3,60,4],[64,1,64,2],[64,3,64,4],[65,3,65,4],[66,1,66,2],[66,3,66,4],[78,2,78,4],[79,2,79,4],[91,1,91,4],[68,0,74,0],[68,1,68,4],[61,1,61,2],[61,3,61,4],[62,1,62,2],[62,3,62,4],[63,1,63,2],[63,3,63,4],[80,0,81,0],[80,1,81,4],[86,1,86,2],[87,1,87,2],[94,3,94,4],[97,2,97,4],[104,2,104,4],[92,1,93,4],[95,0,95,5],[16,1,16,2],[25,3,25,4],[88,1,88,2],[88,3,88,4],[89,1,89,2],[89,3,89,4],[90,1,90,2],[90,3,90,4],[84,1,84,4],[85,1,85,4],[86,3,86,4],[87,3,87,4],[80,5,81,5],[83,0,91,0],[83,2,83,4],[68,5,74,5],[76,0,79,0],[77,2,77,4],[77,5,79,5]]}
[]
[]
[]
[]
[]
[null," Solicitud Vehicular Individual"]
[]
[null,"Recuerda que la mayoría de  operaciones son autogestionables a través de la Plataforma SAS NB&R. Podrás identificar la operación,  al seleccionar el tipo de endoso. Si necesitas soporte operativo comunícate con atencionvirtual@rimac.com.pe\nDescarga el manual instructivo "]
[null,null,null,null,null,null,null,null,"Asunto"]
[null,null,null,null,null,null,null,null,{"$f":"VLOOKUP(H16,Hoja2!A12:F17,4,0)&\"  / \"&I121&\" \"&\"/  \"&VLOOKUP(H16,Hoja2!A12:C17,3,0)&\"  /  \"&D15&\" - \"&IF(H16=2,\"\",D25)&IF(OR(H16=1,H16=2,H16=5),\" \",\" -\"&D26)&\" / Corredor : \"&D20","v":"Autogestionable  / - - , - /  Anulación  /  2101 - Ingrese Nro de Póliza  / Corredor : -"}]
[]
[]
[null,"INFORMACIÓN PRELIMINAR:"]
[null,"Producto:"]
[null,{"$f":"IF(D15=\"\",\"Código de Producto: *.\",\"Código de Producto:\")","v":"Código de Producto:"},null,{"$f":"VLOOKUP(producto,Hoja2!A3:C7,3,0)","v":2101}]
[null,"Tipo de Solicitud:",null,null,null,null,null,1,{"$f":"D24-TODAY()","v":0},{"$f":"IF(I16=0,\"\",\"Recuerde que su solicitud es una Emisión Retroactiva , la cuál pasará por un flujo de aprobación. \")","v":""}]
[null,"Tipo de Endoso",null,null,null,null,null,20]
[null,"Tipo de Endoso",null,null,null,null,null,15]
[null,"Tipo de Endoso"]
[null,{"$f":"IF(D20=\"\",\"Corredor: *.\",\"Corredor:\")","v":"Corredor:"},null,"-"]
[null,{"$f":"IF(D22=\"\",\"Plan:*.\",\"Plan:\")","v":"Plan:"}]
[null,null,null,"Especifique"]
[null,{"$f":"IF(OR(H16=1,H16=4,H16=3),\"Vigencia de Endoso:\",IF(OR(D24=\"\",E24=\"\"),\"Vigencia de Póliza:*.\",\"Vigencia de Póliza:\"))","v":"Vigencia de Endoso:"},null,{"$f":"IF(OR(H17=17,H17=18),\"Fecha de Rehabilitación\",IF(H17=22,\"Prórroga de Certificado\",IF(H17=12,\"Prórroga de póliza\",IF(OR(H16=1,H16=4,H16=3),\"Inicio de vigencia endoso\",IF(D24=\"\",\"Inicio de Vigencia *.\",\"Inicio de Vigencia \")))))","v":"Inicio de vigencia endoso"},{"$f":"IF(OR(H16=1,H16=4,H16=3),\"_\",IF(N55=2,\"Fin de Vigencia \",IF(E24=\"\",\"Fin de Vigencia :*.\",\"Fin de Vigencia \")))","v":"_"}]
[null,null,null,{"$f":"TODAY()","v":"2018-11-14"},{"$f":"IF(OR(H16=1,H16=4,H16=3),\"_\",IF(N55=2,\" \",D24+365))","v":"_"}]
[null,{"$f":"IF(D25=\"\", \"Nro de Póliza:*.\",\"Nro de Póliza:\")","v":"Nro de Póliza:"},null,"Ingrese Nro de Póliza"]
[null,{"$f":"IF(D26=\"\", \"Nro de Certificado:*.\",\"Nro de Certificado:\")","v":"Nro de Certificado:"},null,"Ingrese Nro de Certificado"]
[null,"Poliza Endosada:",null,null,null,null,2]
[]
[]
[null,"DATOS GENERALES"]
[null,{"$f":"IF(H17=3,\"Endoso cambio de Contratante\",\"Contratante\")","v":"Contratante"}]
[null,"Tipo de Documento:",null,null,null,null,null,null,1]
[null,{"$f":"IF(D33=\"\",\"Nro de Documento:*.\",\"Nro de Documento:\")","v":"Nro de Documento:"},null,"-"]
[null,{"$f":"IF(D34=\"\",\"Apellido Paterno:*.\",\"Apellido Paterno:\")","v":"Apellido Paterno:"},null,"-",null,null,null,null,{"$f":"IF(OR(I32=1,I32=3,I32=4),D34&\" \"&D35&\" , \"&D36,D37)","v":"- - , -"}]
[null,{"$f":"IF(D35=\"\",\"Apellido Materno:*.\",\"Apellido Materno:\")","v":"Apellido Materno:"},null,"-"]
[null,{"$f":"IF(D36=\"\",\"Nombres Completos:*.\",\"Nombres Completos:\")","v":"Nombres Completos:"},null,"-"]
[null,{"$f":"IF(D37=\"\",\"Razón Social:*.\",\"Razón Social:\")","v":"Razón Social:"},null,"-"]
[null,{"$f":"IF(D38=\"\",\"Correo Electrónico:*.\",\"Correo Electrónico:\")","v":"Correo Electrónico:"},null,"-"]
[null,{"$f":"IF(D39=\"\",\"Teléfono:*.\",\"Teléfono:\")","v":"Teléfono:"},null,"-"]
[null,{"$f":"IF(D40=\"\",\"Dirección:*.\",\"Dirección:\")","v":"Dirección:"},null,"-"]
[]
[null,"El asegurado es igual al contratante :",null,null,null,null,null,null,1]
[]
[null,{"$f":"IF(H17=2,\"Endoso cambio de asegurado\",\"Asegurado\")","v":"Asegurado"}]
[null,"Tipo de Documento:",null,null,null,null,null,null,1]
[null,{"$f":"IF(D46=\"\",\"Nro de Documento:*.\",\"Nro de Documento:\")","v":"Nro de Documento:"},null,"-",null,null,null,null,{"$f":"IF(OR(I45=1,I45=3,I45=4),D47&\" \"&D48&\" , \"&D49,D50)","v":"- - , -"}]
[null,{"$f":"IF(D47=\"\",\"Apellido Paterno:*.\",\"Apellido Paterno:\")","v":"Apellido Paterno:"},null,"-"]
[null,{"$f":"IF(D48=\"\",\"Apellido Materno:*.\",\"Apellido Materno:\")","v":"Apellido Materno:"},null,"-"]
[null,{"$f":"IF(D49=\"\",\"Nombres Completos:*.\",\"Nombres Completos:\")","v":"Nombres Completos:"},null,"-"]
[null,{"$f":"IF(D50=\"\",\"Razón Social:*.\",\"Razón Social:\")","v":"Razón Social:"},null,"-"]
[null,{"$f":"IF(D51=\"\",\"Correo Electrónico:*.\",\"Correo Electrónico:\")","v":"Correo Electrónico:"},null,"-"]
[null,{"$f":"IF(D52=\"\",\"Teléfono:*.\",\"Teléfono:\")","v":"Teléfono:"},null,"-"]
[null,{"$f":"IF(D53=\"\",\"Dirección:*.\",\"Dirección:\")","v":"Dirección:"},null,"-"]
[null,null,null,null,null,null,null,null,1]
[null,"El responsable de pago es igual al contratante:",null,null,null,null,null,null,1]
[null,"El responsable de pago es igual al asegurado:"]
[]
[null,{"$f":"IF(H17=4,\"Endoso cambio de Responsable de Pago\",\"Responsable de Pago\")","v":"Responsable de Pago"}]
[null,"Tipo de Documento:",null,null,null,null,null,null,1]
[null,{"$f":"IF(D60=\"\",\"Nro de Documento:*.\",\"Nro de Documento:\")","v":"Nro de Documento:"},null,"-",null,null,null,null,{"$f":"IF(OR(I59=1,I59=3,I59=4),D61&\" \"&D62&\" , \"&D63,D64)","v":"- - , -"}]
[null,{"$f":"IF(D61=\"\",\"Apellido Paterno:*.\",\"Apellido Paterno:\")","v":"Apellido Paterno:"},null,"-"]
[null,{"$f":"IF(D62=\"\",\"Apellido Materno:*.\",\"Apellido Materno:\")","v":"Apellido Materno:"},null,"-"]
[null,{"$f":"IF(D63=\"\",\"Nombres Completos:*.\",\"Nombres Completos:\")","v":"Nombres Completos:"},null,"-"]
[null,{"$f":"IF(D64=\"\",\"Razón Social:*.\",\"Razón Social:\")","v":"Razón Social:"},null,"-"]
[null,{"$f":"IF(D65=\"\",\"Correo Electrónico:*.\",\"Correo Electrónico:\")","v":"Correo Electrónico:"},null,"-"]
[null,{"$f":"IF(D66=\"\",\"Teléfono:*.\",\"Teléfono:\")","v":"Teléfono:"},null,"-"]
[null,{"$f":"IF(D67=\"\",\"Dirección:*.\",\"Dirección:\")","v":"Dirección:"},null,"-"]
[]
[null,{"$f":"IF(H16=3,\"ENDOSO DE DATOS DEL VEHICULO\",\"DATOS DEL VEHICULO\")","v":"DATOS DEL VEHICULO"}]
[null,"Clase de Vehículo :","AUTOMOVIL","Placa/Rodaje :","Sin Datos"]
[null,"Tipo de Vehículo :","AUTO",{"$f":"IF(E71=\"\",\"Motor :*.\",\"Motor : \")","v":"Motor : "},"-"]
[null,{"$f":"IF(C72=\"\",\"Marca:*.\",\"Marca:\")","v":"Marca:"},"-","Serie :","-"]
[null,{"$f":"IF(C73=\"\",\"Modelo :*.\",\"Modelo :\")","v":"Modelo :"},"-",{"$f":"IF(E73=\"\",\"Año de fabricación :*.\",\"Año de fabricación :\")","v":"Año de fabricación :"},"-"]
[null,{"$f":"IF(C74=\"\",\"Uso de vehículo :*.\",\"Uso de vehículo :\")","v":"Uso de vehículo :"},"-",{"$f":"IF(E74=\"\",\"Nro de ocupantes :*.\",\"Nro de ocupantes :\")","v":"Nro de ocupantes :"},"-"]
[null,"Vehículo a gas : ",null,{"$f":"IF(E75=\"\",\"Suma Asegurada :*.\",\"Suma Asegurada :\")","v":"Suma Asegurada :"},0]
[null,"Inspección",null,null,null,null,null,null,2]
[null,"Inspección"]
[null,{"$f":"IF(C78=\"\",\"Nombre de Contacto :*.\",\"Nombre de Contacto:\")","v":"Nombre de Contacto :*."}]
[null,{"$f":"IF(C79=\"\",\"Teléfono:*.\",\"Teléfono:\")","v":"Teléfono:*."}]
[null,{"$f":"IF(C80=\"\",\"Correo Electrónico:*.\",\"Correo Electrónico:\")","v":"Correo Electrónico:*."}]
[null,"Adjuntar comprobante de pago del vehiculo o póliza de otra compañía con continuidad de vigencia.\nLas unidades que no son 0 km,  no provienen de otra compañía o no esten endosadas al banco, requieren inspección ."]
[]
[]
[null,{"$f":"IF(AND(H16=3,H17=8),\"Endoso de Cambio de Endosatario :\",\"Endosatario\")","v":"Endosatario"}]
[]
[null,"DATOS DE FINANCIAMIENTO"]
[null,"Prima Neta :",null,null,null,null,null,null,1]
[null,"Descuento según nota técnica :"]
[null,"Indique porcentaje a descontar :",null,null,null,null,null,null,null,null,null,null,null,null,null,2]
[null,{"$f":"IF(D90=\"\",\"Forma de pago:*.\",\"Forma de pago :\")","v":"Forma de pago :"},null,"Contado"]
[null,{"$f":"IF(D91=\"\",\"Nro de cuotas :*.\",\"Nro de cuotas :\")","v":"Nro de cuotas :"},null,1]
[]
[null,"El porcentaje de descuento deberá estar dentro de su nota técnica, de lo contrario su solicitud será rechazada."]
[]
[]
[]
[]
[null,{"$f":"IF(OR(H17=5,H17=6,H17=7),\"Motivo:\",\"Dice:\")","v":"Dice:"},{"$f":"VLOOKUP(H17,Hoja2!F13:H38,3,0)","v":"Endoso de _Seleccione_"},null,null,null,1]
[]
[]
[]
[]
[]
[]
[null,{"$f":"IF(OR(H17=5,H17=6),\"Dice / Debe decir:\",\"Debe decir:\")","v":"Debe decir:"},{"$f":"VLOOKUP(H17,Hoja2!F13:H38,3,0)","v":"Endoso de _Seleccione_"}]
[]
[]
[]
[]
[]
[]
[]
[]
[]
[null,"DATOS GENERALES"]
[null,"Contratante",null,null,null,null,null,null,{"$f":"\"Estimados Señores,\nSe adjunta solicitud\"&IF(I87=2,\"Asimismo,Requiere Vb°\",\"\")&\n\"\nSaludos,\"","v":"Estimados Señores,\nSe adjunta solicitud\nSaludos,"},"Saludos, "]
[null,"Tipo de Documento:",null,null,null,null,null,null,1]
[null,{"$f":"IF(D118=\"\",\"Nro de Documento:*.\",\"Nro de Documento:\")","v":"Nro de Documento:"},null,"-"]
[null,{"$f":"IF(D119=\"\",\"Apellido Paterno:*.\",\"Apellido Paterno:\")","v":"Apellido Paterno:"},null,"-",null,null,null,null,{"$f":"IF(OR(I117=1,I117=3,I117=4),D119&\" \"&D120&\" , \"&D121,D122)","v":"- - , -"}]
[null,{"$f":"IF(D120=\"\",\"Apellido Materno:*.\",\"Apellido Materno:\")","v":"Apellido Materno:"},null,"-"]
[null,{"$f":"IF(D121=\"\",\"Nombres Completos:*.\",\"Nombres Completos:\")","v":"Nombres Completos:"},null,"-",null,null,null,null,{"$f":"IF(B58=\"Endoso cambio de Responsable de Pago\",I60,IF(B31=\"Endoso cambio de Contratante\",I34,IF(B44=\"Endoso cambio de asegurado\",I46,IF(OR(H16=2,H16=5),IF(I32=2,D37,D34&\" \"&D35&\" , \"&D36),I119))))","v":"- - , -"}]
[null,{"$f":"IF(D122=\"\",\"Razón Social:*.\",\"Razón Social:\")","v":"Razón Social:"},null,"-"]
[null,{"$f":"IF(D123=\"\",\"Correo Electrónico:*.\",\"Correo Electrónico:\")","v":"Correo Electrónico:"},null,"-"]
[null,{"$f":"IF(D124=\"\",\"Teléfono:*.\",\"Teléfono:\")","v":"Teléfono:"},null,"-"]
[null,{"$f":"IF(D125=\"\",\"Dirección:*.\",\"Dirección:\")","v":"Dirección:"},null,"-"]

{"sheet":"Hoja2","index":2,"n_rows":91,"n_cols":9,"rows_kept":91,"cut":false,"hidden":true,"merged":[]}
["Producto",1,null,null,null,"PLAN",1]
[]
[1,"Daño Propio",2101,null,null,1,"Modular"]
[2,"Brevete",2010,null,null,2,"Corporativa"]
[3,"Responsabilidad Civil - TPU",2016,null,null,3,"Colectiva"]
[4,"Traslados",2014]
[5,"Exhibición de Placas",2015]
[]
[]
["Tipo de Solicitud",{"$f":"+Formato!H16","v":1},null,null,null,"Tipo de Endoso",1,7,16]
[]
[1,"Anulación","Anulación","Autogestionable"]
[2,"Emisión de Póliza Nueva","Emisión de Póliza Nueva",{"$f":"IF(Formato!I16=0,\"Autogestionable\",\"Operación back\")","v":"Autogestionable"},null,1,"Cambio de Agenciamiento",{"$f":"\"Endoso de \"&G13","v":"Endoso de Cambio de Agenciamiento"},"Operación back"]
[3,"Endoso",{"$f":"\"Endoso : \"&VLOOKUP(Formato!H17,Hoja2!F13:G31,2,0)","v":{"$error":"#N/A"}},{"$f":"IF((VLOOKUP(Formato!H17,F13:I31,4,0))=0,\" \",(VLOOKUP(Formato!H17,F13:I31,4,0)))","v":{"$error":"#N/A"}},null,2,"Cambio de Asegurado",{"$f":"\"Endoso de \"&G14","v":"Endoso de Cambio de Asegurado"},"Auto gestionable"]
[4,"Exclusión","Exclusión","Autogestionable",null,3,"Cambio de Contratante","Endoso de Cambio de Contratante","Auto gestionable"]
[5,"Inclusión","Inclusión",{"$f":"IF(Formato!I16=0,\"Autogestionable\",\"Operación back\")","v":"Autogestionable"},null,4,"Cambio de Responsable de Pago","Endoso de Cambio de Responsable de Pago","Operación back"]
[6,"Rehacer","Rehacer","Operación Back",null,5,"Constancia de Instalación de GPS",{"$f":"\"Endoso de \"&G17","v":"Endoso de Constancia de Instalación de GPS"},"Operación back"]
[null,null,null,null,null,6,"Inspección por Fotos",null,"Operación back"]
[{"$f":"+Formato!I32","v":1},"CONTRATANTE",null,null,null,7,"Anulación de Cesión Derecho","Endoso de Anulación de Cesión Derecho","Operación back"]
[null,"D.N.I.",null,null,null,8,"Modificación de Cesión de Derechos",null,"Auto gestionable con validación"]
[null,"R.U.C.",null,null,null,9,"Prórroga de Póliza",null,"Auto gestionable con validación"]
[null,"C.E.",null,null,null,10,"Prórroga de Certificado","Endoso de Prórroga de Certificado","Auto gestionable con validación"]
[null,"PASAPORTE",null,null,null,11,"Modificación de Año de Vehículo","Endoso de Modificación de Año de Vehículo","Auto gestionable con validación"]
[{"$f":"+Formato!I45","v":1},"rp",null,null,null,12,"Modificación de Suma Asegurada",{"$f":"\"Endoso de \"&G24","v":"Endoso de Modificación de Suma Asegurada"},"Auto gestionable con validación"]
[null,"D.N.I.",null,null,null,13,"Modificación de Cantidad de Ocupantes","Endoso de Modificación de Cantidad de Ocupantes","Auto gestionable con validación"]
[null,"R.U.C.",null,null,null,14,"Modificación de Uso de Vehículo",null,"Auto gestionable con validación"]
[null,"C.E.",null,null,null,15,"Modificación de Clase / Tipo / Marca / Modelo","Endoso de Modificación de Clase / Tipo / Marca / Modelo","Auto gestionable con validación"]
[null,"PASAPORTE",null,null,null,16,"Modificación de Cláusula/Cobertura/Deducible",{"$f":"\"Endoso de \"&G28&\" (Especificar)\"","v":"Endoso de Modificación de Cláusula/Cobertura/Deducible (Especificar)"},"Auto gestionable con validación"]
[1,"ASEGURADO",null,null,null,17,"Rehabilitación de Certificado",{"$f":"\"Endoso de \"&G29","v":"Endoso de Rehabilitación de Certificado"},"Operación back"]
[null,"D.N.I.",null,null,null,18,"Rehabilitación de Póliza","Endoso de Rehabilitación de Póliza","Operación back"]
[null,"R.U.C.",null,null,null,19,"Modificación de Placa/ Motor/ Serie","Endoso de Modificación de Placa/ Motor/ Serie","Auto gestionable"]
[null,"C.E.",null,null,null,20,"_Seleccione_","Endoso de _Seleccione_"]
[null,"PASAPORTE",null,null,null,21,"Condiciones Generales","Endoso de Condiciones Generales","Operación back"]
[null,null,null,null,null,22]
[null,null,null,null,null,23]
[null,null,null,null,null,24]
[null,null,null,null,null,25]
["EL asegurado es igual al contratante :",null,null,null,null,26]
[1,"SI"]
[null,"NO"]
[]
[null,null,null,null,"AUTOMOVIL","AUTOMOVIL","AUTO"]
[null,null,null,null,"CAMION","CAMION","VOLQUETE"]
["EL asegurado es igual al contratante :",null,null,null,"CAMIONETA","CAMION","CAJON"]
[1,"SI",null,null,"CUATRIMOTO","CAMION","BARANDA",null,3]
[null,"NO",null,null,"MICROBUS","CAMION","TRACTO / REMOLCADOR"]
[null,null,null,null,"MINIBUS","CAMION","FURGON"]
[null,null,null,null,"MOTOCICLETA","CAMION","GRUA"]
[" El responsable de pago es igual al asegurado :",null,null,null,"OMNIBUS","CAMION","CONCRETERA (MEZCLADORA)"]
[1,"SI",null,null,"REMOLCADOR","CAMION","PLATAFORMA"]
[null,"NO",null,null,"SEMIREMOLQUE","CAMION","COMPACTADORA"]
[null,null,null,null,null,"CAMION","CAMARA ISOTERMICA"]
[null,null,null,null,null,"CAMION","MEZCLADORA"]
["Vehículo a gas : ",2,null,null,null,"CAMIONETA","RURAL"]
[null,"SI",null,null,null,"CAMIONETA","STATION WAGON"]
[null,"NO",null,null,null,"CAMIONETA","PICK UP 4X2"]
[null,null,null,null,null,"CAMIONETA","PANEL"]
["Vehículo 0 km :",1,null,null,null,"CAMIONETA","VAN"]
[null,"SI",null,null,null,"CAMIONETA","PICK UP 4X4"]
[null,"NO",null,null,null,"CAMIONETA","FURGON"]
[null,null,null,null,null,"CUATRIMOTO","CUATRIMOTO"]
[null,null,null,null,null,"MICROBUS","MICROBUS"]
["Prima Neta",null,null,null,null,"MINIBUS","MINIBUS"]
[null,"Según nota técnica",null,null,null,"MOTOCICLETA","MOTO"]
[null,"Descuento de prima",null,null,null,"OMNIBUS","OMNIBUS"]
[null,"Descuento contracomisión",null,null,null,"REMOLCADOR","REMOLCADOR"]
[null,null,null,null,null,"SEMIREMOLQUE","CARRETA"]
[]
[]
[null,"Indique % de Descuento",null,null,null,"Motivo"]
[null,0.01,null,null,null,"Cambio de Compañía"]
[null,0.02,null,null,null,"No puede pagar la póliza"]
[null,0.03,null,null,null,"Vendio el Auto"]
[null,0.04,null,null,null,"Otro( Especifique) :"]
[null,0.05]
[null,0.06]
[null,7.0000000000000007E-2]
[null,0.08,null,null,null,"endoso"]
[null,0.09,null,null,null,"SI"]
[null,0.1,null,null,null,"NO"]
[null,null,null,null,null,2]
[]
["Descuento según nota técnica :","SI"]
[null,"NO"]
[]
[]
[{"$f":"+Formato!$I$117","v":1},"CONTRATANTE"]
[null,"D.N.I."]
[null,"R.U.C."]
[null,"C.E."]
[null,"PASAPORTE"]